bitfinex/quotes_SOLUSD_20240530
["timestamp","ask_amount","ask_price","bid_price","bid_amount"]
[1717043374032,6.1113,170.46,170.43,2.1708]
[1717043374836,6.1113,170.46,170.42,2.171]
[1717043375041,6.2944,170.45,170.41,2.1712]
[1717043376032,8.4651,170.45,170.4,2.1713]
[1717043377312,6.2944,170.45,170.41,2.1712]
[1717043378328,2.1706,170.46,170.41,2.1712]
[1717043378951,8.2157,170.46,170.41,2.1712]
[1717043380031,2.1707,170.45,170.4,2.1713]
[1717043380540,8.4078,170.45,170.4,2.1713]
[1717043380719,2.1707,170.45,170.4,2.1713]
[1717043380926,8.4077,170.46,170.41,2.1712]
[1717043381151,6.2371,170.45,170.41,2.1712]
[1717043381348,8.4078,170.45,170.4,2.1713]
[1717043382720,8.5267,170.44,170.39,2.1714]
[1717043383131,6.3559,170.44,170.4,2.1713]
[1717043386046,8.5267,170.44,170.39,2.1714]
[1717043386754,6.3559,170.44,170.39,2.1714]
[1717043387061,6.3559,170.44,170.4,2.1713]
[1717043388064,2.1707,170.45,170.4,2.1713]
[1717043388554,25.0346,170.46,170.41,2.1712]
[1717043389641,8.3803,170.46,170.41,2.1712]
[1717043389841,2.1706,170.46,170.41,2.1712]
[1717043390343,2.1706,170.46,170.41,9.6512]
[1717043390659,2.20692768,170.48,170.43,2.1709]
[1717043390827,0.03662768,170.48,170.43,2.1709]
[1717043391230,2.20692768,170.48,170.43,2.1709]
[1717043391534,2.20692768,170.48,170.42,7.48]
[1717043391535,0.03662768,170.48,170.44,2.1708]
[1717043392556,2.20692768,170.48,170.44,2.1708]
[1717043393353,0.03662768,170.48,170.44,2.1708]
[1717043395953,15.407,170.47,170.41,2.1711]
[1717043396143,6.2422,170.44,170.4,2.1713]
[1717043397034,8.413,170.44,170.4,2.1713]
[1717043397233,15.407,170.45,170.38,2.1715]
[1717043397234,2.1709,170.43,170.38,2.1715]
[1717043397538,6.6347,170.43,170.39,2.1714]
[1717043397845,8.8056,170.43,170.38,2.1715]
[1717043398454,6.6347,170.43,170.39,2.1714]
[1717043400658,6.6347,170.43,170.37,11.8234]
[1717043401358,6.6347,170.43,170.39,2.1714]
[1717043403858,8.8056,170.43,170.39,2.1714]
[1717043404065,15.407,170.45,170.33,4.3445]
[1717043404066,2.1713,170.41,170.33,4.3445]
[1717043404244,6.4632,170.41,170.37,2.1717]
[1717043404445,8.6344,170.41,170.36,2.1718]
[1717043404753,6.4632,170.4,170.36,2.1718]
[1717043404941,6.2583,170.4,170.36,2.1718]
[1717043405251,8.6818,170.47,170.33,4.3445]
[1717043405252,21.5676,170.39,170.33,2.1721]
[1717043405562,21.5676,170.39,170.31,5.885]
[1717043405563,6.2583,170.37,170.34,2.1721]
[1717043405756,8.4665,170.4,170.35,2.1719]
[1717043406137,6.2951,170.4,170.35,2.1719]
[1717043406337,6.2951,170.4,170.37,2.1716]
[1717043407471,6.2951,170.4,170.36,2.1718]
[1717043409373,2.1713,170.4,170.35,2.1719]
[1717043410152,2.1712,170.41,170.36,2.1718]
[1717043410348,2.1711,170.42,170.37,2.1717]
[1717043410561,6.163,170.42,170.38,2.1716]
[1717043410866,2.1708,170.44,170.39,2.1714]
[1717043411174,2.1709,170.43,170.38,2.1715]
[1717043411557,8.6626,170.42,170.37,2.1717]
[1717043411751,6.4915,170.42,170.36,7.48]
[1717043412066,6.4915,170.42,170.38,2.1716]
[1717043412275,8.6623,170.44,170.39,2.1714]
[1717043414576,6.4915,170.44,170.4,2.1713]
[1717043415065,6.4915,170.44,170.35,22.0439]
[1717043415066,2.1706,170.46,170.41,2.1712]
[1717043415271,8.4329,170.46,170.41,2.1712]
[1717043418161,2.1705,170.47,170.42,2.1711]
[1717043419891,8.3086,170.47,170.42,2.1711]
[1717043420479,2.1705,170.47,170.42,2.1711]
[1717043420863,0.03662768,170.48,170.39,17.7]
[1717043421073,0.03662768,170.48,170.45,2.1706]
[1717043421260,0.03662768,170.48,170.44,2.1708]
[1717043422357,2.20692768,170.48,170.43,2.1709]
[1717043422553,0.03662768,170.48,170.41,11.8223]
[1717043422989,0.03662768,170.48,170.41,4.3423]
[1717043423153,2.20692768,170.48,170.41,11.8223]
[1717043423482,0.03662768,170.48,170.44,2.1708]
[1717043424480,0.03662768,170.48,170.45,2.1707]
[1717043425565,0.03662768,170.48,170.46,2.1705]
[1717043426788,0.03662768,170.48,170.45,2.1706]
[1717043428491,0.03662768,170.48,170.46,2.1705]
[1717043428667,0.03662768,170.48,170.45,2.1706]
[1717043430372,0.03662768,170.48,170.44,2.1708]
[1717043432185,0.03662768,170.48,170.41,11.8223]
[1717043432379,0.03662768,170.48,170.45,2.1707]
[1717043433170,0.03662768,170.48,170.46,2.1705]
[1717043434989,0.03662768,170.48,170.47,2.1704]
[1717043435183,0.03662768,170.48,170.46,2.1705]
[1717043435707,0.03662768,170.48,170.44,7.48]
[1717043435993,0.03662768,170.48,170.42,10.8549]
[1717043436290,0.03662768,170.48,170.45,7.48]
[1717043436492,0.03662768,170.48,170.47,9.6504]
[1717043439489,0.03662768,170.48,170.41,13.027]
[1717043439693,0.03662768,170.48,170.44,2.1707]
[1717043439891,0.03662768,170.48,170.43,2.1709]
[1717043440097,8.75672768,170.48,170.43,2.1709]
[1717043440477,2.1704,170.47,170.38,4.343]
[1717043440692,2.1704,170.47,170.41,7.48]
[1717043441274,0.03662768,170.48,170.44,2.1708]
[1717043443799,0.03662768,170.48,170.45,2.1706]
[1717043447717,0.03662768,170.48,170.46,2.1705]
[1717043448078,0.03662768,170.48,170.45,7.48]
[1717043448479,0.03662768,170.48,170.46,2.1705]
[1717043449421,0.03662768,170.48,170.47,2.1704]
[1717043452989,0.03662768,170.48,170.46,2.1705]
[1717043453299,6.38232768,170.48,170.45,2.1706]
[1717043453787,6.38232768,170.48,170.45,2.1707]
[1717043453988,0.03662768,170.48,170.45,2.1707]
[1717043454606,0.03662768,170.48,170.46,2.1705]
[1717043455881,0.03662768,170.48,170.43,7.48]
[1717043456782,0.03662768,170.48,170.45,2.1706]
[1717043458384,0.03662768,170.48,170.44,2.1708]
[1717043459305,0.03662768,170.48,170.45,2.1706]
[1717043460606,6.67252768,170.48,170.45,2.1706]
[1717043460794,6.67252768,170.48,170.44,2.1708]
[1717043461489,16.5422,170.47,170.43,2.1709]
[1717043461689,6.3578,170.46,170.39,7.48]
[1717043461998,6.3578,170.45,170.41,2.1711]
[1717043462194,6.3578,170.45,170.42,2.171]
[1717043462394,6.3578,170.45,170.43,2.1709]
[1717043462811,6.3578,170.45,170.38,13.0296]
[1717043462985,6.3578,170.45,170.41,2.1711]
[1717043464106,8.5285,170.45,170.4,2.1713]
[1717043464290,6.4963,170.44,170.4,2.1713]
[1717043465889,6.3209,170.43,170.39,2.1714]
[1717043466087,6.3209,170.43,170.36,7.48]
[1717043466088,15.5997,170.43,170.36,7.48]
[1717043467316,17.7707,170.43,170.38,2.1715]
[1717043467485,6.4813,170.41,170.38,2.1715]
[1717043467687,6.4813,170.41,170.37,2.1716]
[1717043469496,8.7851,170.43,170.38,2.1716]
[1717043470003,6.6141,170.43,170.38,9.6516]
[1717043470190,6.6141,170.43,170.39,9.6514]
[1717043470398,2.1707,170.45,170.39,7.48]
[1717043470625,2.1707,170.45,170.39,2.1714]
[1717043470800,2.1707,170.45,170.39,9.6514]
[1717043471124,8.7655,170.43,170.38,9.6515]
[1717043471303,8.7655,170.43,170.38,2.1715]
[1717043471497,6.5946,170.43,170.39,2.1714]
[1717043472004,8.7655,170.43,170.38,2.1716]
[1717043472816,6.4949,170.42,170.38,2.1716]
[1717043473215,6.4949,170.41,170.33,5.885]
[1717043473390,2.1713,170.4,170.35,2.1719]
[1717043473597,6.5601,170.4,170.35,2.1719]
[1717043474134,2.1712,170.41,170.35,2.1719]
[1717043474135,8.7313,170.41,170.35,2.1719]
[1717043474429,6.5601,170.39,170.35,2.1719]
[1717043475319,6.098,170.38,170.34,2.1721]
[1717043476398,6.098,170.38,170.35,2.1719]
[1717043476893,6.098,170.38,170.34,2.172]
[1717043477097,6.373,170.37,170.33,8.0572]
[1717043477289,6.373,170.36,170.33,5.885]
[1717043478218,2.1717,170.37,170.33,5.885]
[1717043478529,8.6979,170.38,170.33,5.885]
[1717043479105,8.6979,170.38,170.33,8.0572]
[1717043479313,8.6979,170.38,170.33,5.885]
[1717043480921,6.5263,170.38,170.31,5.885]
[1717043481222,2.1718,170.36,170.31,15.3146]
[1717043481602,2.1717,170.37,170.32,2.1723]
[1717043481914,2.1717,170.37,170.33,5.4394]
[1717043482117,8.6532,170.37,170.33,5.4394]
[1717043482506,2.1719,170.36,170.33,5.4394]
[1717043482715,2.1719,170.36,170.31,5.4394]
[1717043482716,8.7164,170.36,170.31,5.4394]
[1717043483220,8.7164,170.36,170.31,15.0919]
[1717043483422,2.1719,170.36,170.31,15.0919]
[1717043483618,2.1717,170.37,170.33,5.4394]
[1717043483830,6.2565,170.4,170.34,2.1721]
[1717043484117,8.4279,170.4,170.35,7.48]
[1717043487023,2.1714,170.39,170.35,7.48]
[1717043487599,6.5218,170.43,170.37,7.48]
[1717043487806,6.5218,170.47,170.38,9.6516]
[1717043488022,2.1709,170.44,170.38,9.6516]
[1717043488932,2.1709,170.44,170.38,2.1716]
[1717043489114,2.1709,170.44,170.38,9.6516]
[1717043489315,14.0018,170.47,170.38,7.48]
[1717043489505,2.1705,170.47,170.42,2.171]
[1717043489705,0.03662768,170.48,170.42,7.48]
[1717043489912,0.03662768,170.48,170.37,24.0294]
[1717043489913,0.03662768,170.48,170.43,2.1709]
[1717043490201,0.03662768,170.48,170.42,2.171]
[1717043490406,2.1705,170.47,170.42,2.171]
[1717043490622,2.1705,170.47,170.41,9.6512]
[1717043491403,2.1705,170.47,170.42,2.1711]
[1717043491902,0.03662768,170.48,170.41,9.6512]
[1717043491903,2.1706,170.46,170.41,9.6512]
[1717043492107,2.1708,170.45,170.39,2.1714]
[1717043492439,2.1709,170.44,170.39,2.1714]
[1717043492729,0.03662768,170.48,170.41,2.1711]
[1717043492900,2.1706,170.46,170.41,2.1711]
[1717043493225,2.1705,170.47,170.42,2.171]
[1717043495234,2.1706,170.46,170.41,2.1711]
[1717043495828,2.1708,170.45,170.4,2.1713]
[1717043497019,2.1709,170.44,170.37,7.48]
[1717043497221,2.1709,170.44,170.39,2.1714]
[1717043499030,2.1707,170.45,170.4,2.1713]
[1717043499405,2.1706,170.46,170.41,2.1711]
[1717043499814,2.1707,170.45,170.41,2.1711]
[1717043500112,2.1707,170.45,170.39,7.48]
[1717043500113,2.1707,170.45,170.4,2.1713]
[1717043500312,2.1707,170.45,170.41,2.1712]
[1717043501314,0.03662768,170.48,170.41,2.1712]
[1717043501315,2.1706,170.46,170.41,2.1712]
[1717043501708,2.1707,170.45,170.41,2.1712]
[1717043501915,2.1707,170.45,170.4,2.1713]
[1717043506341,2.1706,170.46,170.41,2.1712]
[1717043507012,2.1704,170.47,170.42,2.171]
[1717043507213,2.1704,170.47,170.41,2.1711]
[1717043507214,2.1705,170.47,170.41,2.1711]
[1717043507421,0.03662768,170.48,170.42,2.171]
[1717043507621,2.1705,170.47,170.42,2.171]
[1717043507934,2.1706,170.46,170.41,2.1711]
[1717043511649,2.1707,170.45,170.4,2.1713]
[1717043512129,2.1706,170.46,170.41,2.1712]
[1717043513431,2.1706,170.46,170.41,8.2726]
[1717043513637,2.1705,170.47,170.42,2.1711]
[1717043514033,2.1706,170.46,170.41,13.5814]
[1717043514439,0.03662768,170.48,170.41,13.5814]
[1717043514641,2.20702768,170.48,170.43,2.1709]
[1717043515239,2.20702768,170.48,170.42,7.48]
[1717043515240,2.1705,170.47,170.42,9.651]
[1717043517037,2.1705,170.47,170.42,2.171]
[1717043517620,2.1705,170.47,170.41,15.7525]
[1717043517816,2.1705,170.47,170.42,2.171]
[1717043518154,2.1705,170.47,170.42,15.8593]
[1717043518444,2.20692768,170.48,170.43,2.1709]
[1717043518630,2.20692768,170.48,170.42,15.8593]
[1717043519049,2.1704,170.47,170.42,15.8593]
[1717043519621,2.20692768,170.48,170.42,15.8593]
[1717043519817,2.1704,170.47,170.42,2.171]
[1717043520350,2.1704,170.47,170.41,2.1711]
[1717043520526,2.1706,170.46,170.41,2.1711]
[1717043520726,2.1705,170.47,170.41,2.1711]
[1717043521935,2.1705,170.47,170.42,2.171]
[1717043526452,2.20692768,170.48,170.43,2.1709]
[1717043526774,2.20692768,170.48,170.42,2.171]
[1717043527444,2.20692768,170.48,170.43,2.1709]
[1717043529062,2.20692768,170.48,170.44,8.7159]
[1717043529063,0.03662768,170.48,170.44,8.7159]
[1717043530157,0.03662768,170.48,170.47,7.48]
[1717043530368,0.03662768,170.48,170.47,28.3184]
[1717043530655,0.03662768,170.48,170.47,48.3184]
[1717043530970,0.03662768,170.48,170.47,51.4575]
[1717043531274,0.03662768,170.48,170.47,6.3873]
[1717043531958,0.03662768,170.48,170.46,16.0378]
[1717043532138,0.03662768,170.48,170.46,6.3873]
[1717043532334,0.03662768,170.48,170.46,16.0377]
[1717043532545,0.03662768,170.48,170.46,8.5577]
[1717043532734,0.03662768,170.48,170.46,16.0377]
[1717043533338,0.03662768,170.48,170.44,2.1707]
[1717043533541,0.03662768,170.48,170.37,8.6869]
[1717043533742,0.03662768,170.48,170.36,4.3434]
[1717043534289,0.03662768,170.48,170.37,7.48]
[1717043534770,0.03662768,170.48,170.38,7.48]
[1717043534977,0.03662768,170.48,170.41,9.6512]
[1717043535139,0.03662768,170.48,170.42,7.48]
[1717043535341,0.03662768,170.48,170.44,8.7311]
[1717043535640,0.03662768,170.48,170.45,2.1707]
[1717043536160,0.03662768,170.48,170.44,14.0403]
[1717043537041,0.03662768,170.48,170.44,6.5603]
[1717043537237,0.03662768,170.48,170.44,14.0403]
[1717043537437,0.03662768,170.48,170.44,16.2111]
[1717043537846,0.03662768,170.48,170.45,2.1707]
[1717043538454,0.03662768,170.48,170.45,17.7462]
[1717043538657,0.03662768,170.48,170.47,9.6504]
[1717043538972,0.03662768,170.48,170.47,15.8614]
[1717043539555,0.03662768,170.48,170.47,31.2878]
[1717043539751,0.03662768,170.48,170.47,48.9878]
[1717043540148,0.03662768,170.48,170.47,53.3287]
[1717043540349,0.03662768,170.48,170.47,59.8401]
[1717043541073,0.03662768,170.48,170.47,88.5219]
[1717043541241,0.03662768,170.48,170.47,81.0419]
[1717043541442,0.03662768,170.48,170.47,88.5219]
[1717043542260,0.03662768,170.48,170.47,63.3419]
[1717043542466,0.03662768,170.48,170.47,28.3814]
[1717043542671,0.03662768,170.48,170.47,8.3814]
[1717043542869,0.03662768,170.48,170.47,24.0336]
[1717043543071,0.03662768,170.48,170.47,31.5136]
[1717043543446,0.03662768,170.48,170.47,24.0336]
[1717043543751,0.03662768,170.48,170.47,15.8614]
[1717043544364,0.03662768,170.48,170.47,8.3814]
[1717043544669,0.03662768,170.48,170.47,15.8614]
[1717043545270,0.03662768,170.48,170.47,35.8073]
[1717043545470,0.03662768,170.48,170.47,53.5073]
[1717043545977,16.949141,170.55,170.54,2.1695]
[1717043546192,16.949141,170.55,170.54,9.6495]
[1717043546477,16.949141,170.55,170.54,2.1695]
[1717043546641,16.949141,170.55,170.54,9.6495]
[1717043547269,16.949141,170.55,170.54,2.1695]
[1717043547569,16.949141,170.55,170.54,9.6495]
[1717043547865,0.8099022,170.58,170.54,9.6495]
[1717043548063,0.8099022,170.58,170.55,2.1694]
[1717043548260,0.8099022,170.58,170.54,2.1695]
[1717043549663,0.8099022,170.58,170.52,2.1697]
[1717043549854,0.8099022,170.58,170.53,2.1696]
[1717043550576,0.8099022,170.58,170.48,10.8514]
[1717043550577,0.8099022,170.58,170.54,6.471]
[1717043550765,0.8099022,170.58,170.55,2.1694]
[1717043551069,0.8099022,170.58,170.55,2.1693]
[1717043551272,0.8099022,170.58,170.54,9.6495]
[1717043551461,0.8099022,170.58,170.55,2.1694]
[1717043551771,0.8099022,170.58,170.55,9.6494]
[1717043551966,0.8099022,170.58,170.56,2.1693]
[1717043552361,0.8099022,170.58,170.56,9.6493]
[1717043552882,15.4821,170.64,170.32,9.286417]
[1717043552883,0.350188,170.65,170.57,39.7172]
[1717043553180,15.1902,170.66,170.57,39.7172]
[1717043553181,15.1902,170.66,170.65,2.1681]
[1717043553361,15.1902,170.66,170.65,8.2064]
[1717043553567,15.1902,170.66,170.65,15.6864]
[1717043553968,15.1902,170.66,170.65,9.6481]
[1717043554480,15.1902,170.66,170.65,2.1681]
[1717043554973,15.1902,170.66,170.65,42.3551]
[1717043555856,15.1902,170.66,170.65,84.1586]
[1717043556171,2.1664,170.79,170.67,17.7]
[1717043556371,2.1664,170.79,170.71,2.1672]
[1717043556571,2.1664,170.79,170.72,2.1672]
[1717043556766,2.1665,170.78,170.72,2.1672]
[1717043556955,2.1665,170.78,170.71,2.1674]
[1717043557156,6.3084,170.82,170.72,2.1672]
[1717043557357,2.1665,170.78,170.72,2.1672]
[1717043557574,2.1665,170.78,170.67,24.28]
[1717043557781,8.4745,170.82,170.74,2.167]
[1717043558083,2.1663,170.8,170.73,2.1671]
[1717043559665,2.1663,170.8,170.74,2.167]
[1717043559875,2.1663,170.8,170.73,2.1671]
[1717043560382,2.1668,170.76,170.67,6.2855]
[1717043560583,2.1666,170.77,170.7,2.1675]
[1717043560766,2.1666,170.77,170.71,2.1673]
[1717043562082,6.3084,170.82,170.68,17.7]
[1717043562272,2.1662,170.8,170.74,2.167]
[1717043562677,6.3084,170.82,170.74,2.167]
[1717043563362,8.4744,170.82,170.74,2.167]
[1717043563562,6.3084,170.82,170.69,42.0352]
[1717043563964,2.1662,170.8,170.73,2.1671]
[1717043564188,6.3084,170.82,170.74,2.167]
[1717043565185,2.1662,170.81,170.74,2.167]
[1717043565377,2.1662,170.8,170.74,2.167]
[1717043565693,2.1661,170.81,170.74,2.167]
[1717043566692,8.4744,170.82,170.74,2.167]
[1717043568483,6.3084,170.82,170.74,2.167]
[1717043569299,6.2159,170.86,170.74,8.6105]
[1717043569480,6.2159,170.86,170.74,26.3105]
[1717043570402,8.3814,170.86,170.74,30.6445]
[1717043570599,6.2159,170.86,170.74,67.1323]
[1717043570896,2.1658,170.84,170.74,50.6445]
[1717043571195,2.1659,170.83,170.74,28.6105]
[1717043571395,2.1656,170.85,170.74,22.167]
[1717043571596,6.2159,170.86,170.74,28.1762]
[1717043571894,2.1657,170.85,170.74,50.2102]
[1717043572397,2.2e-06,170.75,170.74,66.1109]
[1717043572979,2.2e-06,170.75,170.74,65.3794]
[1717043573993,2.2e-06,170.75,170.74,22.167]
[1717043574202,2.2e-06,170.75,170.74,2.167]
[1717043575300,2.2e-06,170.75,170.74,24.201]
[1717043575503,2.2e-06,170.75,170.74,57.1878]
[1717043575800,2.2e-06,170.75,170.74,26.501]
[1717043576289,2.2e-06,170.75,170.74,6.501]
[1717043577202,2.2e-06,170.75,170.74,24.201]
[1717043577604,2.2e-06,170.75,170.74,30.5627]
[1717043577899,2.2e-06,170.75,170.74,50.5627]
[1717043578507,2.2e-06,170.75,170.74,65.7319]
[1717043579291,2.2e-06,170.75,170.74,88.0219]
[1717043579806,2.2e-06,170.75,170.74,65.7319]
[1717043580484,2.2e-06,170.75,170.74,26.501]
[1717043581013,2.2e-06,170.75,170.74,6.501]
[1717043581815,2.2e-06,170.75,170.74,13.0021]
[1717043582013,2.2e-06,170.75,170.74,6.501]
[1717043582508,2.2e-06,170.75,170.74,2.167]
[1717043584517,2.2e-06,170.75,170.74,19.867]
[1717043585310,2.2e-06,170.75,170.74,22.20861754]
[1717043585518,2.2e-06,170.75,170.74,65.6768]
[1717043589811,2.2e-06,170.75,170.74,22.167]
[1717043590030,2.2e-06,170.75,170.74,2.167]
[1717043590322,2.2e-06,170.75,170.74,39.3702]
[1717043590635,2.2e-06,170.75,170.74,2.167]
[1717043591011,2.2e-06,170.75,170.74,24.201]
[1717043591227,2.2e-06,170.75,170.74,39.3702]
[1717043591526,2.2e-06,170.75,170.74,46.035]
[1717043591727,2.2e-06,170.75,170.74,66.035]
[1717043592538,24.8644,170.92,170.79,17.7]
[1717043592720,22.6997,170.92,170.87,2.1653]
[1717043592906,8.5483,170.92,170.86,2.1654]
[1717043593106,7.1934022,170.93,170.87,2.1653]
[1717043593531,9.3580022,170.93,170.87,2.1653]
[1717043594126,7.1934022,170.93,170.79,22.0327]
[1717043594326,2.1651,170.9,170.83,2.1657]
[1717043594510,2.1651,170.89,170.83,2.1657]
[1717043594829,4.3297,170.92,170.79,17.7]
[1717043595134,2.1651,170.89,170.82,2.1659]
[1717043595308,2.1651,170.89,170.83,2.1658]
[1717043595918,2.165,170.9,170.84,2.1657]
[1717043596428,7.1934022,170.93,170.81,17.7]
[1717043596636,9.3580022,170.93,170.87,2.1653]
[1717043597628,7.1934022,170.93,170.88,2.1652]
[1717043597927,7.1934022,170.93,170.89,2.1651]
[1717043598641,7.1934022,170.93,170.88,2.1652]
[1717043599017,0.8099022,170.93,170.92,2.1647]
[1717043599337,6.0354,170.92,170.88,2.1651]
[1717043599643,0.8099022,170.93,170.89,2.1651]
[1717043600308,0.8099022,170.93,170.88,2.1652]
[1717043600309,6.0354,170.92,170.88,2.1652]
[1717043600532,6.0354,170.92,170.85,22.0311]
[1717043600533,6.0354,170.92,170.89,2.1651]
[1717043600706,0.8099022,170.93,170.89,2.1651]
[1717043600902,0.8099022,170.93,170.9,2.1649]
[1717043601939,0.8099022,170.93,170.92,2.1647]
[1717043605327,0.8099022,170.93,170.91,2.1648]
[1717043606342,0.8099022,170.93,170.89,2.165]
[1717043606518,7.0562022,170.93,170.9,2.165]
[1717043606858,6.2463,170.92,170.89,2.1651]
[1717043607023,6.2463,170.92,170.88,2.1652]
[1717043607216,6.2463,170.92,170.87,2.1653]
[1717043607217,16.2118,170.92,170.87,2.1653]
[1717043607637,6.2463,170.91,170.87,2.1653]
[1717043608017,0.8099022,170.93,170.85,22.0312]
[1717043608217,0.8099022,170.93,170.86,17.7]
[1717043608523,0.8099022,170.93,170.91,2.1647]
[1717043608834,0.8099022,170.93,170.87,22.0307]
[1717043608835,0.03651788,170.99,170.93,2.1645]
[1717043609016,0.03651788,170.99,170.95,2.1643]
[1717043609221,16.24831788,170.99,170.95,2.1643]
[1717043609447,6.2463,170.98,170.95,2.1643]
[1717043610232,6.28281788,170.99,170.95,2.1643]
[1717043610618,6.28281788,170.99,170.94,2.1644]
[1717043611147,6.2463,170.98,170.93,2.1646]
[1717043611315,8.44661788,170.99,170.93,2.1646]
[1717043611733,16.2118,170.97,170.89,4.3302]
[1717043612042,6.2463,170.97,170.92,2.1647]
[1717043612224,16.2118,170.96,170.92,2.1647]
[1717043612421,6.1244,170.95,170.92,2.1647]
[1717043613424,2.164,170.98,170.88,8.661]
[1717043613624,2.164,170.98,170.91,2.1648]
[1717043613845,6.15041788,170.99,170.92,2.1647]
[1717043613846,15.8762,170.96,170.92,2.1647]
[1717043614052,6.4142,170.95,170.92,2.1647]
[1717043614729,6.473,170.95,170.88,4.3304]
[1717043615047,0.03651788,170.99,170.95,2.1643]
[1717043615535,0.03651788,170.99,170.96,2.1642]
[1717043616124,0.03651788,170.99,170.95,2.1643]
[1717043617536,0.03651788,170.99,170.97,2.164]
[1717043617923,0.03651788,170.99,170.96,2.1642]
[1717043619441,0.03651788,170.99,170.92,22.0294]
[1717043619650,0.03651788,170.99,170.97,2.164]
[1717043620026,0.03651788,170.99,170.98,2.1639]
[1717043621052,0.03651788,170.99,170.97,2.164]
[1717043621861,0.03651788,170.99,170.93,12.9876]
[1717043622354,0.03651788,170.99,170.97,2.1641]
[1717043623132,0.03651788,170.99,170.96,2.1642]
[1717043623364,0.03651788,170.99,170.97,2.1641]
[1717043623653,0.03651788,170.99,170.96,2.1641]
[1717043624226,0.03651788,170.99,170.93,12.9876]
[1717043624227,0.03651788,170.99,170.97,2.164]
[1717043624423,6.22221788,170.99,170.93,4.3292]
[1717043624631,6.22221788,170.99,170.94,2.1644]
[1717043624632,17.86271788,170.99,170.94,2.1644]
[1717043624836,15.6624,170.98,170.94,2.1644]
[1717043625127,0.03651788,170.99,170.95,2.1643]
[1717043625343,0.03651788,170.99,170.9,22.0298]
[1717043625543,6.68241788,170.99,170.94,2.1644]
[1717043625932,6.68241788,170.99,170.95,2.1643]
[1717043626455,0.03651788,170.99,170.92,17.7]
[1717043626633,0.03651788,170.99,170.98,2.1639]
[1717043628745,0.03651788,170.99,170.98,30.268]
[1717043629135,0.03651788,170.99,170.98,6.4918]
[1717043629339,0.03651788,170.99,170.98,24.1918]
[1717043629538,0.03651788,170.99,170.98,30.6837]
[1717043631156,2.1627,171.08,170.98,30.6837]
[1717043631361,2.1628,171.08,171.02,2.1633]
[1717043631882,2.1629,171.07,171.02,2.1633]
[1717043632243,2.1629,171.07,171.01,2.1635]
[1717043632560,2.1628,171.07,171.02,2.1634]
[1717043633849,6.4873,171.11,171.0,2.1636]
[1717043634057,110.72013494,171.16,171.0,2.1637]
[1717043634058,2.1631,171.05,171.0,2.1637]
[1717043634232,21.7073,171.04,171.0,2.1637]
[1717043634434,21.7073,171.04,170.99,2.1638]
[1717043634638,21.7073,171.04,170.96,6.4926]
[1717043635049,21.7073,171.04,170.99,2.1637]
[1717043635366,23.8705,171.04,170.99,2.1638]
[1717043635881,17.6094,171.04,170.99,2.1638]
[1717043636048,6.582,171.02,170.98,2.1639]
[1717043636251,6.582,171.02,170.93,8.6583]
[1717043636252,6.582,171.02,170.97,2.164]
[1717043636458,6.582,171.01,170.97,2.164]
[1717043636667,22.0531,171.01,170.98,2.1639]
[1717043637173,22.0531,171.01,170.97,2.164]
[1717043638549,2.1638,171.0,170.9,37.1872]
[1717043638769,24.2167,171.01,170.95,2.1643]
[1717043639466,24.2167,171.01,170.96,2.1641]
[1717043639971,22.0531,171.01,170.96,2.1641]
[1717043641962,22.0531,171.01,170.97,2.1641]
[1717043643175,6.2957,171.03,170.98,2.1639]
[1717043643364,6.2957,171.03,170.95,6.4929]
[1717043643553,6.2957,171.03,170.96,4.3283]
[1717043643754,17.4182,171.05,170.99,2.1637]
[1717043643954,17.4182,171.05,170.96,4.3283]